{"text_format":"1","workbook":"xlsx","n_sheets":2,"sheets":["Order Form","Инструкция"],"not_rendered":{"charts":0,"images":1,"macros":1,"external_links":0,"defined_names":3,"comments":0,"pivot_tables":0},"unopened":[],"bounds":{"document_bytes":16777216,"sheet_cells":100000,"rows_first":2000,"rows_last":500,"rows_between":2000,"halvings":0,"cell_chars":16384,"cell_head_chars":4096},"cells_cut":0,"cells_raw":0,"read":"whole","date_system":"1900"}

{"sheet":"Order Form","index":0,"n_rows":199,"n_cols":33,"rows_kept":199,"cut":false,"hidden":false,"merged":[[6,2,6,4]]}
["№ заказа","1",null,null,null,null,null,null,null,null,"eur с НДС",{"$f":"L8+L11+L29+L48+L62+L69+L84+L105+L131+L173+L186+L192+L196","v":0}]
["Клиент",null,null,null,null,null,null,null,null,null,"eur без НДС",{"$f":"L1/1.18","v":0}]
["Скидка",null,null,null,null,null,null,null,null,null,"шт",{"$f":"K8+K11+K29+K48+K62+K69+K84+K105+K131+K173+K186+K192+K196","v":0}]
["Дата доставки",null,null,null,null,null,null,null,null,null,"кг",{"$f":"AF6","v":0}]
[null,null,null,null,null,null,null,null,null,null,"м3",{"$f":"AG6","v":0}]
[null,null,null,null,null,null,null,null,null,null,null,null,null,null,null,null,null,null,null,null,null,null,null,null,null,null,null,null,null,null,null,{"$f":"AF8+AF11+AF29+AF48+AF62+AF69+AF84+AF105+AF131+AF173+AF186+AF192+AF196","v":0},{"$f":"AG8+AG11+AG29+AG48+AG62+AG69+AG84+AG105+AG131+AG173+AG186+AG192+AG196","v":0}]
["Артикул \nProduct Code","Наименование продукта \nProduct Description","   Размер / Упаковка\n        Size / Packaging",null,null,null,"Цвет \nColor","Уп.\nCart.","Цена EUR \nc НДС ","Цена со скидкой EUR с НДС","Заказ шт.","Сумма  EUR с НДС",null,null,null,null,null,null,null,null,null,null,null,null,null,null,null,null,null,"Вес штуки","Объем штуки","Вес итого","Объем итого"]
["Полировальная система 333",null,null,null,null,null,null,null,null,null,{"$f":"SUM(K9:K10)","v":0},{"$f":"SUM(L9:L10)","v":0},null,null,null,null,null,null,null,null,null,null,null,null,null,null,null,null,null,null,null,{"$f":"SUM(AF9:AF10)","v":0},{"$f":"SUM(AG9:AG10)","v":0}]
["QW333/ST","Одноступенчатая абразивная полировальная паста Cutting Compound Paste","250 г",null,"Тюбик",null,"Кремовый",20,4.0209758342161077,{"$f":"ROUND(I9*(1-$B$3),2)","v":4.0199999999999996},null,{"$f":"J9*K9","v":0},null,null,null,null,null,null,null,null,null,null,null,null,null,null,null,null,null,0.26500000000000001,1.298E-2,{"$f":"AD9*K9","v":0},{"$f":"AE9*(K9/H9)","v":0}]
["QW334/1","Мелкоабразивная полировальная паста Fine Finishing Compound","1 л",null,"Бутылка",null,"Кремовый",6,25.734245338983051,25.73,null,0,null,null,null,null,null,null,null,null,null,null,null,null,null,null,null,null,null,1.2583,1.3950000000000001E-2,{"$f":"AD10*K10","v":0},{"$f":"AE10*(K10/H10)","v":0}]
["Лаки SYSTEM 20",null,null,null,null,null,null,null,null,null,{"$f":"SUM(K14:K24)","v":0},{"$f":"SUM(L14:L24)","v":0},null,null,null,null,null,null,null,null,null,null,null,null,null,null,null,null,null,null,null,{"$f":"SUM(AF14:AF24)","v":0},{"$f":"SUM(AG14:AG24)","v":0}]
["S2080/1","S2080 HS Лак Super Clear 2:1","1 л",null,"Банка",null,"Прозрачный",6,16.169884322033898,{"$f":"ROUND(I12*(1-$B$3),2)","v":16.170000000000002},null,{"$f":"J12*K12","v":0}]
["S2080/5","S2080 HS Лак Super Clear 2:1","5 л",null,"Банка",null,"Прозрачный",2,72.245863983050853,72.25,null,0]
["S2081EV/1","S2081EV UHS Лак Diamond 2:1","1 л",null,"Банка",null,"Прозрачный",6,21.991199999999999,21.99,null,0,null,null,null,null,null,null,null,null,null,null,null,null,null,null,null,null,null,1.1416999999999999,1.197E-2,{"$f":"AD14*K14","v":0},{"$f":"AE14*(K14/H14)","v":0}]
["S2081EV/5","S2081EV UHS Лак Diamond 2:2","5 л",null,"Банка",null,"Прозрачный",2,94.717200000000005,94.72,null,0,null,null,null,null,null,null,null,null,null,null,null,null,null,null,null,null,null,5.4,1.6299999999999999E-2,0,0]
["S2081/1","S2081 HS Лак Clear 2:1","1 л",null,"Банка",null,"Прозрачный",6,12.905336440677967,12.91,null,0,null,null,null,null,null,null,null,null,null,null,null,null,null,null,null,null,null,1.1416999999999999,1.197E-2,0,0]
["S2081/5","S2081 HS Лак Clear 2:1","5 л",null,"Банка",null,"Прозрачный",2,58.630843220338988,58.63,null,0,null,null,null,null,null,null,null,null,null,null,null,null,null,null,null,null,null,5.4,1.6299999999999999E-2,0,0]
["S2081SR/1","S2081SR HS Лак повышенной прочности Clear 2:1","1 л",null,"Банка",null,"Прозрачный",6,17.556498305084745,17.559999999999999,null,0,null,null,null,null,null,null,null,null,null,null,null,null,null,null,null,null,null,1.1416999999999999,1.197E-2,0,0]
["S2091/1","S2091 HS Лак Performance 2:1","1 л",null,"Банка",null,"Прозрачный",6,14.957961864406778,14.96,null,0,null,null,null,null,null,null,null,null,null,null,null,null,null,null,null,null,null,1.1416999999999999,1.197E-2,0,0]
["S2091/5","S2091 HS Лак Performance 2:1","5 л",null,"Банка",null,"Прозрачный",2,66.906854237288158,66.91,null,0,null,null,null,null,null,null,null,null,null,null,null,null,null,null,null,null,null,5.4,1.6299999999999999E-2,0,0]
["S2082/1","S2082 HS Лак медленный Overall Clear 2:1","1 л",null,"Банка",null,"Прозрачный",6,14.957961864406778,14.96,null,0,null,null,null,null,null,null,null,null,null,null,null,null,null,null,null,null,null,1.1416999999999999,1.197E-2,0,0]
["S2086/1","S2086 HS Лак быстрый Super Fast 3:1","1 л",null,"Банка",null,"Прозрачный",6,15.372854237288136,15.37,null,0,null,null,null,null,null,null,null,null,null,null,null,null,null,null,null,null,null,1.1416999999999999,1.197E-2,0,0]
["S2086/5","S2086 HS Лак быстрый Super Fast 3:1","5 л",null,"Банка",null,"Прозрачный",2,69.603654661016961,69.599999999999994,null,0,null,null,null,null,null,null,null,null,null,null,null,null,null,null,null,null,null,5.4,1.6299999999999999E-2,0,0]
["S2088/1","S2088 HS Лак Universal 4:1 ","1 л",null,"Банка",null,"Прозрачный",6,11.824432627118645,11.82,null,0,null,null,null,null,null,null,null,null,null,null,null,null,null,null,null,null,null,1.1416999999999999,1.197E-2,0,0]
["Биндеры EUROPEAN GENUINE COATINGS",null,null,null,null,null,null,null,0]
["EGCB100/4","Биндер акриловый для базовых покрытий 100","4 л",null,"Банка",null,"Прозрачный",4,60.235821610169495,60.24,null,0,null,null,null,null,null,null,null,null,null,null,null,null,null,null,null,null,null,4.125,2.1409999999999998E-2,{"$f":"AD26*K26","v":0},{"$f":"AE26*(K26/H26)","v":0}]
["EGCB150/4","Биндер полиэфирный для базовых покрытий 150","4 л",null,"Банка",null,"Прозрачный",4,47.537931355932201,47.54,null,0,null,null,null,null,null,null,null,null,null,null,null,null,null,null,null,null,null,4.125,2.1409999999999998E-2,{"$f":"AD27*K27","v":0},{"$f":"AE27*(K27/H27)","v":0}]
["EGCB160/4","Биндер полиэфирный для базовых покрытий 160","4 л",null,"Банка",null,"Прозрачный",4,47.537931355932201,47.54,null,0,null,null,null,null,null,null,null,null,null,null,null,null,null,null,null,null,null,4.125,2.1409999999999998E-2,{"$f":"AD28*K28","v":0},{"$f":"AE28*(K28/H28)","v":0}]
["Грунты SYSTEM 20",null,null,null,null,null,null,null,null,null,{"$f":"SUM(K30:K47)","v":0},{"$f":"SUM(L30:L47)","v":0},null,null,null,null,null,null,null,null,null,null,null,null,null,null,null,null,null,null,null,{"$f":"SUM(AF30:AF45)","v":0},{"$f":"SUM(AG30:AG45)","v":0}]
["S2021G/1","S2021 UHS Грунт наполнитель 5:1","1 л",null,"Банка",null,"Серый",6,15.307344915254236,15.31,null,0,null,null,null,null,null,null,null,null,null,null,null,null,null,null,null,null,null,1.8332999999999999,9.7199999999999995E-3,{"$f":"AD30*K30","v":0},{"$f":"AE30*(K30/H30)","v":0}]
["S2021G/3","S2021 UHS Грунт наполнитель 5:1","3 л",null,"Банка",null,"Серый",4,44.273383474576271,44.27,null,0,null,null,null,null,null,null,null,null,null,null,null,null,null,null,null,null,null,5.2125000000000004,2.069E-2,0,0]
["S2021G/5","S2021 UHS Грунт наполнитель 5:1","5 л",null,"Банка",null,"Серый",2,69.243353389830517,69.239999999999995,null,0,null,null,null,null,null,null,null,null,null,null,null,null,null,null,null,null,null,8,1.6060000000000001E-2,0,0]
["S2025W/1","S2025 UHS Грунт наполнитель 4:1","1 л",null,"Банка",null,"Белый",6,11.507804237288138,{"$f":"ROUND(I33*(1-$B$3),2)","v":11.51},null,{"$f":"J33*K33","v":0},null,null,null,null,null,null,null,null,null,null,null,null,null,null,null,null,null,1.8916999999999999,9.7199999999999995E-3,0,0]
["S2025W/3T","S2025 UHS Грунт наполнитель 4:1","3 л",null,"Банка",null,"Белый",4,34.06484745762711,34.06,null,0,null,null,null,null,null,null,null,null,null,null,null,null,null,null,null,null,null,5.125,2.069E-2,0,0]
["S2025W/4","S2025 UHS Грунт наполнитель 4:1","4 л",null,"Банка",null,"Белый",2,43.596453813559329,43.6,null,0,null,null,null,null,null,null,null,null,null,null,null,null,null,null,null,null,null,7.25,1.508E-2,0,0]
["S2025/1","S2025 UHS Грунт наполнитель 4:1","1 л",null,"Банка",null,"Серый",6,11.507804237288138,11.51,null,0,null,null,null,null,null,null,null,null,null,null,null,null,null,null,null,null,null,1.8916999999999999,9.7199999999999995E-3,0,0]
["S2025/3T","S2025 UHS Грунт наполнитель 4:1","3 л",null,"Банка",null,"Серый",4,34.06484745762711,34.06,null,0,null,null,null,null,null,null,null,null,null,null,null,null,null,null,null,null,null,5.125,2.069E-2,0,0]
["S2025/4","S2025 UHS Грунт наполнитель 4:1","4 л",null,"Банка",null,"Серый",2,43.596453813559329,43.6,null,0,null,null,null,null,null,null,null,null,null,null,null,null,null,null,null,null,null,7.25,1.508E-2,0,0]
["S2025B/1","S2025 UHS Грунт наполнитель 4:1","1 л",null,"Банка",null,"Черный",6,11.507804237288138,11.51,null,0,null,null,null,null,null,null,null,null,null,null,null,null,null,null,null,null,null,1.8916999999999999,9.7199999999999995E-3,0,0]
["S2025B/3T","S2025 UHS Грунт наполнитель 4:1","3 л",null,"Банка",null,"Черный",4,34.746144406779649,{"$f":"ROUND(I40*(1-$B$3),2)","v":34.75},null,{"$f":"J40*K40","v":0},null,null,null,null,null,null,null,null,null,null,null,null,null,null,null,null,null,5.125,2.069E-2,0,0]
["S2025B/4","S2025 UHS Грунт наполнитель 4:1","4 л",null,"Банка",null,"Черный",2,43.596453813559329,43.6,null,0,null,null,null,null,null,null,null,null,null,null,null,null,null,null,null,null,null,7.25,1.508E-2,0,0]
["Грунты специального назначения",null,null,null,null,null,null,null,0]
["BAR/1","BARCOAT Изолятор покрытий быстрый","1 л",null,"Банка",null,"Желтый",6,28.660328389830511,28.66,null,0,null,null,null,null,null,null,null,null,null,null,null,null,null,null,null,null,null,1.3167,9.7199999999999995E-3,{"$f":"AD43*K43","v":0},{"$f":"AE43*(K43/H43)","v":0}]
["ACID/1","ACID 8 Грунт протравливающий","1 л",null,"Банка",null,"Серый",6,25.330271186440676,25.33,null,0,null,null,null,null,null,null,null,null,null,null,null,null,null,null,null,null,null,1.2166999999999999,9.7199999999999995E-3,{"$f":"AD44*K44","v":0},{"$f":"AE44*(K44/H44)","v":0}]
["S2003/1","S2003 1K Грунт адгезионный для пластика","1 л",null,"Банка",null,"Прозрачный",6,23.987330084745761,23.99,null,0,null,null,null,null,null,null,null,null,null,null,null,null,null,null,null,null,null,1.0417000000000001,1.197E-2,{"$f":"AD45*K45","v":0},{"$f":"AE45*(K45/H45)","v":0}]
["REP/1","U-POL Грунт эпоксидный 3:1","750 мл",null,"Банка",null,"Светло-серый",6,10.45,{"$f":"ROUND(I46*(1-$B$3),2)","v":10.45},null,{"$f":"J46*K46","v":0},null,null,null,null,null,null,null,null,null,null,null,null,null,null,null,null,null,1.8916999999999999,9.7199999999999995E-3,{"$f":"AD46*K46","v":0},{"$f":"AE46*(K46/H46)","v":0}]
["REH/SM","U-POL Отвердитель для грунта эпоксидного 3:1","250 мл",null,"Банка",null,"Прозрачный",6,6.75,6.75,null,0,null,null,null,null,null,null,null,null,null,null,null,null,null,null,null,null,null,0.31669999999999998,5.5999999999999999E-3,0,0]
["Отвердители SYSTEM 20",null,null,null,null,null,null,null,null,null,{"$f":"SUM(K49:K60)","v":0},{"$f":"SUM(L49:L60)","v":0},null,null,null,null,null,null,null,null,null,null,null,null,null,null,null,null,null,null,null,{"$f":"SUM(AF49:AF60)","v":0},{"$f":"SUM(AG49:AG60)","v":0}]
["S2030/SM","S2030 Отвердитель быстрый","250 мл",null,"Банка",null,"Прозрачный",12,6.3980771186440686,6.4,null,0,null,null,null,null,null,null,null,null,null,null,null,null,null,null,null,null,null,0.31669999999999998,5.5999999999999999E-3,{"$f":"AD49*K49","v":0},{"$f":"AE49*(K49/H49)","v":0}]
["S2030/S","S2030 Отвердитель быстрый","330 мл",null,"Банка",null,"Прозрачный",6,7.9921372881355932,7.99,null,0,null,null,null,null,null,null,null,null,null,null,null,null,null,null,null,null,null,0.45,4.7600000000000003E-3,0,0]
["S2030/M","S2030 Отвердитель быстрый","500 мл",null,"Банка",null,"Прозрачный",6,11.584231779661016,11.58,null,0,null,null,null,null,null,null,null,null,null,null,null,null,null,null,null,null,null,0.60829999999999995,5.77E-3,0,0]
["S2030/1","S2030 Отвердитель быстрый","1 л",null,"Банка",null,"Прозрачный",6,22.961017372881354,22.96,null,0,null,null,null,null,null,null,null,null,null,null,null,null,null,null,null,null,null,1.1416999999999999,1.197E-2,0,0]
["S2030/25","S2030 Отвердитель быстрый","2.5 л",null,"Банка",null,"Прозрачный",4,48.564244067796608,48.56,null,0,null,null,null,null,null,null,null,null,null,null,null,null,null,null,null,null,null,2.75,1.8519999999999998E-2,0,0]
["S2030/5","S2030 Отвердитель быстрый","5 л",null,"Банка",null,"Прозрачный",2,94.34434194915255,94.34,null,0,null,null,null,null,null,null,null,null,null,null,null,null,null,null,null,null,null,5.375,1.474E-2,0,0]
["S2032/SM","S2032 Отвердитель стандартный","250 мл",null,"Банка",null,"Прозрачный",12,6.5290957627118651,{"$f":"ROUND(I55*(1-$B$3),2)","v":6.53},null,{"$f":"J55*K55","v":0},null,null,null,null,null,null,null,null,null,null,null,null,null,null,null,null,null,0.30420000000000003,5.5999999999999999E-3,0,0]
["S2032/S","S2032 Отвердитель стандартный","330 мл",null,"Банка",null,"Прозрачный",6,9.1931415254237301,9.19,null,0,null,null,null,null,null,null,null,null,null,null,null,null,null,null,null,null,null,0.45,4.7600000000000003E-3,0,0]
["S2032/M","S2032 Отвердитель стандартный","500 мл",null,"Банка",null,"Прозрачный",6,12.883500000000002,12.88,null,0,null,null,null,null,null,null,null,null,null,null,null,null,null,null,null,null,null,0.61670000000000003,5.77E-3,0,0]
["S2032/1","S2032 Отвердитель стандартный","1 л",null,"Банка",null,"Прозрачный",6,25.352107627118645,25.35,null,0,null,null,null,null,null,null,null,null,null,null,null,null,null,null,null,null,null,1.1499999999999999,1.197E-2,0,0]
["S2032/25","S2032 Отвердитель стандартный","2.5 л",null,"Банка",null,"Прозрачный",4,48.564244067796608,48.56,null,0,null,null,null,null,null,null,null,null,null,null,null,null,null,null,null,null,null,2.8,1.8519999999999998E-2,0,0]
["S2032/5","S2032 Отвердитель стандартный","5 л",null,"Банка",null,"Прозрачный",2,94.34434194915255,94.34,null,0,null,null,null,null,null,null,null,null,null,null,null,null,null,null,null,null,null,5.4749999999999996,1.634E-2,0,0]
["S2039EV/S","S2039EV Отвердитель стандартный","330 мл",null,"Банка",null,"Прозрачный",6,16.146599999999999,{"$f":"ROUND(I61*(1-$B$3),2)","v":16.149999999999999},null,{"$f":"J61*K61","v":0}]
["Разбавители SYSTEM 20",null,null,null,null,null,null,null,null,null,{"$f":"SUM(K63:K68)","v":0},{"$f":"SUM(L63:L68)","v":0},null,null,null,null,null,null,null,null,null,null,null,null,null,null,null,null,null,null,null,{"$f":"SUM(AF63:AF68)","v":0},{"$f":"SUM(AG63:AG68)","v":0}]
["S2044/1","S2044 Разбавитель мультифункциональный, быстрый","1 л",null,"Банка",null,"Прозрачный",5,8.1449923728813562,8.14,null,0,null,null,null,null,null,null,null,null,null,null,null,null,null,null,null,null,null,1.05,8.26E-3,{"$f":"AD63*K63","v":0},{"$f":"AE63*(K63/H63)","v":0}]
["S2044/5","S2044 Разбавитель мультифункциональный, быстрый","5 л",null,"Банка",null,"Прозрачный",2,30.581935169491526,{"$f":"ROUND(I64*(1-$B$3),2)","v":30.58},null,{"$f":"J64*K64","v":0}]
["S2045/1","S2045 Разбавитель мультифункциональный, стандартный","1 л",null,"Банка",null,"Прозрачный",5,6.81,6.81,null,0,null,null,null,null,null,null,null,null,null,null,null,null,null,null,null,null,null,1.05,8.26E-3,{"$f":"AD65*K65","v":0},{"$f":"AE65*(K65/H65)","v":0}]
["S2045/5","S2045 Разбавитель мультифункциональный, стандартный","5 л",null,"Банка",null,"Прозрачный",2,25.36,25.36,null,0,null,null,null,null,null,null,null,null,null,null,null,null,null,null,null,null,null,4.8,1.634E-2,{"$f":"AD66*K66","v":0},{"$f":"AE66*(K66/H66)","v":0}]
["S2046/1","S2046 Разбавитель мультифункциональный, медленный","1 л",null,"Банка",null,"Прозрачный",5,8.1449923728813562,{"$f":"ROUND(I67*(1-$B$3),2)","v":8.14},null,{"$f":"J67*K67","v":0}]
["S2046/5","S2046 Разбавитель мультифункциональный, медленный","5 л",null,"Банка",null,"Прозрачный",2,30.581935169491526,30.58,null,0,null,null,null,null,null,null,null,null,null,null,null,null,null,null,null,null,null,4.8,1.634E-2,{"$f":"AD68*K68","v":0},{"$f":"AE68*(K68/H68)","v":0}]
["Дополнительные материалы SYSTEM 20",null,null,null,null,null,null,null,null,null,{"$f":"SUM(K70:K74)","v":0},{"$f":"SUM(L70:L75)","v":0},null,null,null,null,null,null,null,null,null,null,null,null,null,null,null,null,null,null,null,{"$f":"SUM(AF70:AF74)","v":0},{"$f":"SUM(AG70:AG74)","v":0}]
["S2000/5","S2000 Обезжириватель-антисиликон на водной основе","5 л",null,"Банка",null,"Прозрачный",2,23.539683050847454,{"$f":"ROUND(I70*(1-$B$3),2)","v":23.54},null,{"$f":"J70*K70","v":0},null,null,null,null,null,null,null,null,null,null,null,null,null,null,null,null,null,5.2,1.634E-2,{"$f":"AD70*K70","v":0},{"$f":"AE70*(K70/H70)","v":0}]
["S2001/5","S2001 Обезжириватель-антисиликон, быстрый","5 л",null,"Банка",null,"Прозрачный",2,21.891031779661017,21.89,null,0,null,null,null,null,null,null,null,null,null,null,null,null,null,null,null,null,null,4.3375000000000004,1.634E-2,{"$f":"AD71*K71","v":0},{"$f":"AE71*(K71/H71)","v":0}]
["S2002/1","S2002 Обезжириватель-антисиликон, медленный","1 л",null,"Банка",null,"Прозрачный",6,5.6774745762711873,5.68,null,0,null,null,null,null,null,null,null,null,null,null,null,null,null,null,null,null,null,0.9667,1.197E-2,{"$f":"AD72*K72","v":0},{"$f":"AE72*(K72/H72)","v":0}]
["S2002/5","S2002 Обезжириватель-антисиликон, медленный","5 л",null,"Банка",null,"Прозрачный",2,21.891031779661017,21.89,null,0,null,null,null,null,null,null,null,null,null,null,null,null,null,null,null,null,null,4.5,1.634E-2,{"$f":"AD73*K73","v":0},{"$f":"AE73*(K73/H73)","v":0}]
["S20FISH/S","FISH EYE Растворитель антисиликоновый","250 мл",null,"Бутылка",null,"Прозрачный",10,9.6798000000000002,9.68,null,0,null,null,null,null,null,null,null,null,null,null,null,null,null,null,null,null,null,0.28999999999999998,7.1999999999999998E-3,{"$f":"AD74*K74","v":0},{"$f":"AE74*(K74/H74)","v":0}]
["ROC/S","Акселератор cушки ROCKET","250 мл",null,"Бутылка",null,"Прозрачный",10,4.8653999999999993,4.87,null,0,null,null,null,null,null,null,null,null,null,null,null,null,null,null,null,null,null,0.27,7.1999999999999998E-3]
["Покрытия специального назначения, антигравии и герметики",null,null,null,null,null,null,null,null,null,{"$f":"SUM(K77:K83)","v":0},{"$f":"SUM(L77:L83)","v":0},null,null,null,null,null,null,null,null,null,null,null,null,null,null,null,null,null,null,null,{"$f":"SUM(AF77:AF93)","v":0},{"$f":"SUM(AG77:AG93)","v":0}]
["GRA/NB1","GRAVITEX PLUS HS Антигравийное покрытие","1 л",null,"Бутылка",null,"Черный",12,8.4288661016949149,{"$f":"ROUND(I77*(1-$B$3),2)","v":8.43},null,{"$f":"J77*K77","v":0},null,null,null,null,null,null,null,null,null,null,null,null,null,null,null,null,null,1.375,2.0619999999999999E-2,{"$f":"AD77*K77","v":0},{"$f":"AE77*(K77/H77)","v":0}]
["GRA/GG1","GRAVITEX PLUS HS Антигравийное покрытие","1 л",null,"Бутылка",null,"Серый",12,8.6363122881355938,8.64,null,0,null,null,null,null,null,null,null,null,null,null,null,null,null,null,null,null,null,1.35,2.0619999999999999E-2,0,0]
["GRA/BW1","GRAVITEX PLUS HS Антигравийное покрытие","1 л",null,"Бутылка",null,"Белый",12,8.6363122881355938,8.64,null,0,null,null,null,null,null,null,null,null,null,null,null,null,null,null,null,null,null,1.375,2.0619999999999999E-2,0,0]
["TIG/GG","TIGERSEAL Клей-герметик полиуретановый","310 мл",null,"Картридж",null,"Серый",12,8.2432563559322034,8.24,null,{"$f":"J80*K80","v":0},null,null,null,null,null,null,null,null,null,null,null,null,null,null,null,null,null,0.46460000000000001,8.0800000000000004E-3,0,0]
["TIG/NB","TIGERSEAL Клей-герметик полиуретановый","310 мл",null,"Картридж",null,"Черный",12,8.2432563559322034,8.24,null,{"$f":"J81*K81","v":0},null,null,null,null,null,null,null,null,null,null,null,null,null,null,null,null,null,0.43330000000000002,8.0800000000000004E-3,0,0]
["TIG/BW","TIGERSEAL Клей-герметик полиуретановый","310 мл",null,"Картридж",null,"Белый",12,8.2432563559322034,8.24,null,{"$f":"J82*K82","v":0},null,null,null,null,null,null,null,null,null,null,null,null,null,null,null,null,null,0.4708,8.0800000000000004E-3,0,0]
["GS/1","GREY STRIPE  Покрытие защитное для швов","1 л",null,"Банка",null,"Серый",6,21.508894067796607,21.51,null,{"$f":"J83*K83","v":0},null,null,null,null,null,null,null,null,null,null,null,null,null,null,null,null,null,1.2666999999999999,1.0869999999999999E-2,0,0]
["Защитное покрытие RAPTOR",null,null,null,null,null,null,null,null,null,{"$f":"SUM(K85:K104)","v":0},{"$f":"SUM(L85:L104)","v":0},null,null,null,null,null,null,null,null,null,null,null,null,null,null,null,null,null,null,null,{"$f":"SUM(AF85:AF104)","v":0},{"$f":"SUM(AG85:AG104)","v":0}]
["RLB/S1","RAPTOR 2K 3:1 Защитное покрытие повышенной прочности, комплект","0.95л",null,"Комплект",null,"Черный",6,24.129266949152544,{"$f":"ROUND(I85*(1-$B$3),2)","v":24.13},null,{"$f":"J85*K85","v":0},null,null,null,null,null,null,null,null,null,null,null,null,null,null,null,null,null,1.4482999999999999,4.7400000000000003E-3,{"$f":"AD85*K85","v":0},{"$f":"AE85*(K85/H85)","v":0}]
["RLT/S1","RAPTOR 2K 3:1 Защитное покрытие повышенной прочности, комплект","0.95л",null,"Комплект",null,"Колеруемый",6,24.129266949152544,24.13,null,0,null,null,null,null,null,null,null,null,null,null,null,null,null,null,null,null,null,1.4482999999999999,4.7400000000000003E-3,0,{"$f":"AE86*(K86/H86)","v":0}]
["RLB/S4","RAPTOR 2K 3:1 Защитное покрытие повышенной прочности, комплект","3.80л",null,"Комплект",null,"Черный","4+1",83.589894915254249,83.59,null,0,null,null,null,null,null,null,null,null,null,null,null,null,null,null,null,null,null,5,1.0279999999999999E-2,0,{"$f":"AE87*K87","v":0}]
["RLT/S4","RAPTOR 2K 3:1 Защитное покрытие повышенной прочности, комплект","3.80л",null,"Комплект",null,"Колеруемый","4+1",83.589894915254249,83.59,null,0,null,null,null,null,null,null,null,null,null,null,null,null,null,null,null,null,null,{"$f":"AD87","v":5},{"$f":"AE87","v":1.0279999999999999E-2},0,{"$f":"AE88*K88","v":0}]
["RLB/S4-TR","RAPTOR 2K 3:1 Защитное покрытие повышенной прочности + Антискользящая добавка RLTR/SM","3.8л + 200г",null,"Комплект",null,"Черный","4+1",84.611874999999998,84.61,null,0,null,null,null,null,null,null,null,null,null,null,null,null,null,null,null,null,null,{"$f":"AD87+0.2","v":5.2},{"$f":"AE87","v":1.0279999999999999E-2},0,{"$f":"AE89*K89","v":0}]
["RLT/S4-TR","RAPTOR 2K 3:1 Защитное покрытие повышенной прочности + Антискользящая добавка RLTR/SM","3.8л + 200г",null,"Комплект",null,"Колеруемый","4+1",84.612394915254242,84.61,null,0,null,null,null,null,null,null,null,null,null,null,null,null,null,null,null,null,null,{"$f":"AD88+0.2","v":5.2},{"$f":"AE88","v":1.0279999999999999E-2},0,{"$f":"AE90*K90","v":0}]
["RLW/S4","RAPTOR 2K 3:1 Защитное покрытие повышенной прочности, комплект","3.80л",null,"Комплект",null,"Белый ","4+1",91.948884406779669,{"$f":"ROUND(I91*(1-$B$3),2)","v":91.95},null,{"$f":"J91*K91","v":0},null,null,null,null,null,null,null,null,null,null,null,null,null,null,null,null,null,1.25,1.0829999999999999E-2,0,{"$f":"AE91*K91","v":0}]
["RLB/5","RAPTOR 2K 3:1 Защитное покрытие повышенной прочности","5 л",null,"Банка",null,"Черный",2,90.795920338983038,90.8,null,0,null,null,null,null,null,null,null,null,null,null,null,null,null,null,null,null,null,6.09,4.2199999999999998E-3,0,{"$f":"AE92*(K92/H92)","v":0}]
["RLT/5","RAPTOR 2K 3:1 Защитное покрытие повышенной прочности","5 л",null,"Банка",null,"Колеруемый",2,90.795920338983038,90.8,null,0,null,null,null,null,null,null,null,null,null,null,null,null,null,null,null,null,null,6.1,4.2199999999999998E-3,0,0]
["RLB/AL","RAPTOR Защитное покрытие повышенной прочности в 2К аэрозоле","400 мл",null,"Аэрозоль",null,"Черный",6,21.7220593220339,{"$f":"ROUND(I94*(1-$B$3),2)","v":21.72},null,0,null,null,null,null,null,null,null,null,null,null,null,null,null,null,null,null,null,0.51300000000000001,7.1000000000000004E-3,0,0]
["RLW/AL","RAPTOR Защитное покрытие повышенной прочности в 2К аэрозоле","400 мл",null,"Аэрозоль",null,"Белый",6,23.894265254237293,{"$f":"ROUND(I95*(1-$B$3),2)","v":23.89},null,{"$f":"J95*K95","v":0},null,null,null,null,null,null,null,null,null,null,null,null,null,null,null,null,null,0.51300000000000001,7.1000000000000004E-3,0,0]
["GUN/1","RAPTOR Пистолет для нанесения защитных и антигравийных покрытий","-",null,"шт.",null,"-",5,23.867229661016946,23.87,null,0,null,null,null,null,null,null,null,null,null,null,null,null,null,null,null,null,null,0.39,9.7800000000000005E-3,0,0]
["GUN/VN","RAPTOR Пистолет профессиональный с регулируемой дюзой","-",null,"шт.",null,"-",6,68.893970338983053,68.89,null,{"$f":"J97*K97","v":0},null,null,null,null,null,null,null,null,null,null,null,null,null,null,null,null,null,0.39,9.7800000000000005E-3,0,0]
["RLH/5","RAPTOR Отвердитель","5 л",null,"Банка",null,"Прозрачный",2,103.77768432203389,103.78,null,0,null,null,null,null,null,null,null,null,null,null,null,null,null,null,null,null,null,5,3.4499999999999999E-3,0,0]
["REP/1LK","RAPTOR Грунт эпоксидный антикоррозийный, комплект 1 л (0,8 л грунт + 0,2 л отвердитель)","1л",null,"Комплект",null,"Серый",8,35.779008050847459,35.78,null,0,null,null,null,null,null,null,null,null,null,null,null,null,null,null,null,null,null,5,3.4499999999999999E-3,0,0]
["REP/5LK","RAPTOR Грунт эпоксидный антикоррозийный, комплект 5 л (4 л грунт + 1 л отвердитель)","5л",null,"Комплект",null,"Серый",1,108.05762669491526,108.06,null,0,null,null,null,null,null,null,null,null,null,null,null,null,null,null,null,null,null,5,3.4499999999999999E-3,0,0]
["REP/AL","RAPTOR Грунт эпоксидный антикоррозийнный в 2К аэрозоле","400 мл",null,"Аэрозоль",null,"Бежевый",6,19.54985338983051,{"$f":"ROUND(I101*(1-$B$3),2)","v":19.55},null,0,null,null,null,null,null,null,null,null,null,null,null,null,null,null,null,null,null,0.51300000000000001,7.1000000000000004E-3,0,0]
["RPTAP/AL","RAPTOR Усилитель адгезии","450 мл",null,"Аэрозоль",null,"Черный",6,12.883500000000002,{"$f":"ROUND(I102*(1-$B$3),2)","v":12.88},null,0,null,null,null,null,null,null,null,null,null,null,null,null,null,null,null,null,null,0.47499999999999998,1.1999999999999999E-3,0,0]
["RPTEP/AL","RAPTOR Грунт протравливающий","450 мл",null,"Аэрозоль",null,"Черный",6,10.852711016949151,10.85,null,0,null,null,null,null,null,null,null,null,null,null,null,null,null,null,null,null,null,0.49830000000000002,1.1999999999999999E-3,0,0]
["RLTR/SM","RAPTOR TRACTION Добавка антискользящая ","200 г",null,"Упаковка",null,"Серый",20,7.5772449152542372,7.58,null,0,null,null,null,null,null,null,null,null,null,null,null,null,null,null,null,null,null,0.22,2.2000000000000001E-4,0,0]
["Шпатлевки",null,null,null,null,null,null,null,null,null,{"$f":"SUM(K106:K130)","v":0},{"$f":"SUM(L106:L130)","v":0},null,null,null,null,null,null,null,null,null,null,null,null,null,null,null,null,null,null,null,{"$f":"SUM(AF112:AF130)","v":0},{"$f":"SUM(AG112:AG130)","v":0}]
["EXSOF/1","EXTRA SOFT Шпатлевка легкошлифуемая универсальная","1.1 л",null,"Банка",null,"Бледно-желтый",8,17.004175,{"$f":"ROUND(I106*(1-$B$3),2)","v":17},null,{"$f":"J106*K106","v":0},null,null,null,null,null,null,null,null,null,null,null,null,null,null,null,null,null,2.2563,2.6900000000000001E-3,{"$f":"AD106*K106","v":0},{"$f":"AE106*(K106/H106)","v":0}]
["RS6101","RAPID Шпатлевка быстросохнущая универсальная","1.1 л",null,"Банка",null,"Серый",8,10.809038135593221,{"$f":"ROUND(I107*(1-$B$3),2)","v":10.81},null,{"$f":"J107*K107","v":0},null,null,null,null,null,null,null,null,null,null,null,null,null,null,null,null,null,1.5029999999999999,2.4299999999999999E-3,0,0]
["RS6103","RAPID Шпатлевка быстросохнущая универсальная","3 л",null,"Банка",null,"Серый",4,26.804230932203396,26.8,null,0,null,null,null,null,null,null,null,null,null,null,null,null,null,null,null,null,null,4.3724999999999996,4.8999999999999998E-3,0,0]
["RS6208","RAPID GLAZE Шпатлевка быстросохнущая самовыравнивающаяся","880 мл",null,"Пакет",null,"Голубой",6,13.451247457627119,13.45,null,0,null,null,null,null,null,null,null,null,null,null,null,null,null,null,null,null,null,1.1982999999999999,2.3999999999999998E-3,0,0]
["EASY3/1","EASY 3 Шпатлевка пластичная универсальная","1.1 л",null,"Банка",null,"Золотой",8,13.10186440677966,13.1,null,0,null,null,null,null,null,null,null,null,null,null,null,null,null,null,null,null,null,2.2563,2.6900000000000001E-3,0,0]
["FANT/BL","FANTASTIC Шпатлевка суперлегкая универсальная","1 л",null,"Пакет",null,"Кремовый",6,11.540558898305084,11.54,null,0,null,null,null,null,null,null,null,null,null,null,null,null,null,null,null,null,null,0.9,1.34E-2,0,0]
["FANTL/2","FANTASTIC Шпатлевка суперлегкая универсальная","1.4 л",null,"Банка",null,"Кремовый",8,16.191720762711867,16.190000000000001,null,0,null,null,null,null,null,null,null,null,null,null,null,null,null,null,null,null,null,1.4167000000000001,1.6459999999999999E-2,0,0]
["FANT/3","FANTASTIC Шпатлевка суперлегкая универсальная","3 л",null,"Банка",null,"Кремовый",4,32.383441525423734,{"$f":"ROUND(I113*(1-$B$3),2)","v":32.380000000000003},null,0,null,null,null,null,null,null,null,null,null,null,null,null,null,null,null,null,null,3.0525000000000002,2.5329999999999998E-2,0,0]
["SMCB/2","SMC CARBON Шпатлевка углеволоконная","1.1 л",null,"Банка",null,"Черный",8,15.907847033898305,15.91,null,0,null,null,null,null,null,null,null,null,null,null,null,null,null,null,null,null,null,2.1063000000000001,2.2870000000000001E-2,0,0]
["SMCW/2","SMC CARBON Шпатлевка углеволоконная легкошлифуемая","1.1 л",null,"Банка",null,"Белый",8,15.907847033898305,15.91,null,0,null,null,null,null,null,null,null,null,null,null,null,null,null,null,null,null,null,2.1375000000000002,2.2870000000000001E-2,0,0]
["UPEG/BM","EXTRA GOLD Шпатлевка универсальная","600 мл",null,"Пакет",null,"Кремовый",10,6.5727686440677964,6.57,null,0,null,null,null,null,null,null,null,null,null,null,null,null,null,null,null,null,null,1.222,1.2120000000000001E-2,0,0]
["UPEG/BL","EXTRA GOLD Шпатлевка универсальная","1 л",null,"Пакет",null,"Кремовый",6,10.361391101694917,10.36,null,0,null,null,null,null,null,null,null,null,null,null,null,null,null,null,null,null,null,1.944,1.34E-2,0,0]
["UPEG/2","EXTRA GOLD Шпатлевка универсальная","1.1 л",null,"Банка",null,"Кремовый",8,11.915599766949152,11.92,null,0,null,null,null,null,null,null,null,null,null,null,null,null,null,null,null,null,null,2.3531,2.2870000000000001E-2,0,0]
["FIB/BM","FIBRAL Шпатлевка стекловолоконная","600 мл",null,"Пакет",null,"Желтый",10,7.4789809322033891,7.48,null,0,null,null,null,null,null,null,null,null,null,null,null,null,null,null,null,null,null,0.95,1.2120000000000001E-2,0,0]
["FIB/BL","FIBRAL Шпатлевка стекловолоконная","1 л",null,"Пакет",null,"Желтый",6,11.737086864406781,11.74,null,0,null,null,null,null,null,null,null,null,null,null,null,null,null,null,null,null,null,1.4750000000000001,1.34E-2,0,0]
["FIB/2","FIBRAL Шпатлевка стекловолоконная","0,9 л",null,"Банка",null,"Желтый",8,11.147502966101696,11.15,null,0,null,null,null,null,null,null,null,null,null,null,null,null,null,null,null,null,null,1.5438000000000001,2.2870000000000001E-2,0,0]
["UPOLD/2","U-POL D Шпатлевка пластичная с алюминием","1.1 л",null,"Банка",null,"Серебристый",8,15.940601694915255,15.94,null,0,null,null,null,null,null,null,null,null,null,null,null,null,null,null,null,null,null,2.0625,2.2870000000000001E-2,0,0]
["PLAS/6","PLAST X 6 Шпатлевка для пластика эластичная","600 мл",null,"Банка",null,"Черный",6,13.05819152542373,13.06,null,0,null,null,null,null,null,null,null,null,null,null,null,null,null,null,null,null,null,1.3916999999999999,1.176E-2,0,0]
["BAGDOL/1","DOPLHIN GLAZE Шпатлевка самовыравнивающаяся","440 мл",null,"Пакет",null,"Лазурный",10,6.1142033898305082,6.11,null,0,null,null,null,null,null,null,null,null,null,null,null,null,null,null,null,null,null,0.62,1.2120000000000001E-2,0,0]
["BAGDOLHV/1","DOPLHIN GLAZE Шпатлевка самовыравнивающаяся (повышенной вязкости)","440 мл",null,"Пакет",null,"Лазурный",10,6.4745046610169492,6.47,null,0,null,null,null,null,null,null,null,null,null,null,null,null,null,null,null,null,null,0.56000000000000005,1.2120000000000001E-2,0,0]
["EASY/BMP","EASY ONE Шпатлевка наполняющая легкошлифуемая, коробка (10 пакетов по 600 мл.)","6 л",null,"Коробка",null,"Серый",1,56.305262288135602,56.31,null,0,null,null,null,null,null,null,null,null,null,null,null,null,null,null,null,null,null,7.55,1.2120000000000001E-2,0,0]
["FLY/BM","FLYWEIGHT  Шпатлевка наполняющая пластичная","600 мл",null,"Пакет",null,"Светло-серый",10,4.7712622881355937,4.7699999999999996,null,0,null,null,null,null,null,null,null,null,null,null,null,null,null,null,null,null,null,0.89300000000000002,1.2120000000000001E-2,0,0]
["FLY/BL","FLYWEIGHT  Шпатлевка наполняющая пластичная","1 л",null,"Пакет",null,"Светло-серый",6,7.5008173728813574,7.5,null,0,null,null,null,null,null,null,null,null,null,null,null,null,null,null,null,null,null,1.3933,1.34E-2,0,0]
["FLY/3","FLYWEIGHT  Шпатлевка наполняющая пластичная","3 л",null,"Банка",null,"Светло-серый",4,20.165952966101692,20.170000000000002,null,0,null,null,null,null,null,null,null,null,null,null,null,null,null,null,null,null,null,3.9824999999999999,2.0480000000000002E-2,0,0]
["UPOL/SF1","REFACE Шпатлевка напыляемая","1 л",null,"Банка",null,"Белый",6,15.645809745762712,15.65,null,0,null,null,null,null,null,null,null,null,null,null,null,null,null,null,null,null,null,1.7749999999999999,1.0869999999999999E-2,0,0]
["Аэрозоли",null,null,null,null,null,null,null,null,null,{"$f":"SUM(K132:K172)","v":0},{"$f":"SUM(L132:L172)","v":0},null,null,null,null,null,null,null,null,null,null,null,null,null,null,null,null,null,null,null,{"$f":"SUM(AF132:AF172)","v":0},{"$f":"SUM(AG132:AG172)","v":0}]
["Серия аэрозолей PREMIUM",null,null,null,null,null,null,null,0]
["CLEAR/AL","CLEAR 1 Лак UV устойчивый с высоким глянцем","450 мл",null,"Аэрозоль",null,"Прозрачный",6,12.883500000000002,{"$f":"ROUND(I133*(1-$B$3),2)","v":12.88},null,0,null,null,null,null,null,null,null,null,null,null,null,null,null,null,null,null,null,0.5,6.7200000000000003E-3,{"$f":"AD133*K133","v":0},{"$f":"AE133*(K133/H133)","v":0}]
["WELD/AL","WELD 2 Грунт провариваемый с цинком","450 мл",null,"Аэрозоль",null,"Цинк",6,12.883500000000002,{"$f":"ROUND(I134*(1-$B$3),2)","v":12.88},null,{"$f":"J134*K134","v":0},null,null,null,null,null,null,null,null,null,null,null,null,null,null,null,null,null,0.51670000000000005,6.7200000000000003E-3,0,0]
["WELDC/AL","WELD 2 Грунт провариваемый с медью","450 мл",null,"Аэрозоль",null,"Медь",6,12.883500000000002,{"$f":"ROUND(I135*(1-$B$3),2)","v":12.88},null,{"$f":"J135*K135","v":0},null,null,null,null,null,null,null,null,null,null,null,null,null,null,null,null,null,0.51670000000000005,6.7200000000000003E-3,{"$f":"AD135*K135","v":0},{"$f":"AE135*(K135/H135)","v":0}]
["SPOT/AL","SPOT 3  Грунт универсальный для точечного ремонта","450 мл",null,"Аэрозоль",null,"Черный",6,12.883500000000002,{"$f":"ROUND(I136*(1-$B$3),2)","v":12.88},null,{"$f":"J136*K136","v":0},null,null,null,null,null,null,null,null,null,null,null,null,null,null,null,null,null,0.51670000000000005,6.7200000000000003E-3,0,0]
["GRIP/AL","GRIP 4 Усилитель адгезии универсальный","450 мл",null,"Аэрозоль",null,"Прозрачный",6,12.883500000000002,{"$f":"ROUND(I137*(1-$B$3),2)","v":12.88},null,{"$f":"J137*K137","v":0},null,null,null,null,null,null,null,null,null,null,null,null,null,null,null,null,null,0.5,6.7200000000000003E-3,0,0]
["HIGHG/AL","HIGH 5 Грунт толстослойный","450 мл",null,"Аэрозоль",null,"Серый",6,12.883500000000002,12.88,null,{"$f":"J138*K138","v":0},null,null,null,null,null,null,null,null,null,null,null,null,null,null,null,null,null,0.48330000000000001,6.7200000000000003E-3,0,0]
["HIGHDG/AL","HIGH 5 Грунт толстослойный","450 мл",null,"Аэрозоль",null,"Темно-серый",6,12.883500000000002,12.88,null,0,null,null,null,null,null,null,null,null,null,null,null,null,null,null,null,null,null,0.4667,6.7200000000000003E-3,0,0]
["ACID/AL","ACID 8 Грунт протравливающий","450 мл",null,"Аэрозоль",null,"Серый",6,10.852711016949151,10.85,null,0,null,null,null,null,null,null,null,null,null,null,null,null,null,null,null,null,null,4.9799999999999997E-2,6.7200000000000003E-3,0,0]
["BLEND/AL ","BLEND #9 Растворитель переходов Fade Out Solvent (обновленный S2043)","450 мл",null,"Аэрозоль",null,"Прозрачный",6,12.883500000000002,{"$f":"ROUND(I141*(1-$B$3),2)","v":12.88},null,{"$f":"J141*K141","v":0},null,null,null,null,null,null,null,null,null,null,null,null,null,null,null,null,null,0.5,6.7200000000000003E-3,0,0]
["GUARD/AL","GUARD #10 GRAVIGARD Антигравийное покрытие (обновленный GRAVA/B)","450 мл",null,"Аэрозоль",null,"Черный",6,7.4451864406779666,7.45,null,0,null,null,null,null,null,null,null,null,null,null,null,null,null,null,null,null,null,0.60829999999999995,6.7200000000000003E-3,0,0]
["TRIMSLW/AL","TRIM #11 Эмаль высокоукрывистая для колесных дисков","450 мл",null,"Аэрозоль",null,"Серебристый",6,8.407029661016951,8.41,null,0,null,null,null,null,null,null,null,null,null,null,null,null,null,null,null,null,null,0.60829999999999995,6.7200000000000003E-3,0,0]
["TRIMSTW/AL","TRIM #11 Эмаль высокоукрывистая для колесных дисков","450 мл",null,"Аэрозоль",null,"Стальной",6,8.407029661016951,8.41,null,0,null,null,null,null,null,null,null,null,null,null,null,null,null,null,null,null,null,0.60829999999999995,6.7200000000000003E-3,0,0]
["TRIMGB/AL","TRIM #11 Эмаль высокоукрывистая глянцевая","450 мл",null,"Аэрозоль",null,"Черный глянец",6,8.407029661016951,8.41,null,0,null,null,null,null,null,null,null,null,null,null,null,null,null,null,null,null,null,0.60829999999999995,6.7200000000000003E-3,0,0]
["TRIMMB/AL","TRIM #11 Эмаль высокоукрывистая матовая","450 мл",null,"Аэрозоль",null,"Черный матовый",6,8.407029661016951,8.41,null,0,null,null,null,null,null,null,null,null,null,null,null,null,null,null,null,null,null,0.60829999999999995,6.7200000000000003E-3,0,0]
["TRIMSB/AL","TRIM #11 Эмаль высокоукрывистая полуматовая","450 мл",null,"Аэрозоль",null,"Черный полумат",6,8.407029661016951,8.41,null,0,null,null,null,null,null,null,null,null,null,null,null,null,null,null,null,null,null,0.60829999999999995,6.7200000000000003E-3,0,0]
["TRIMGW/AL","TRIM #11 Эмаль высокоукрывистая глянцевая","450 мл",null,"Аэрозоль",null,"Белый глянец",6,8.407029661016951,8.41,null,0,null,null,null,null,null,null,null,null,null,null,null,null,null,null,null,null,null,0.60829999999999995,6.7200000000000003E-3,0,0]
["Серия аэрозолей для ремонта пластика",null,null,null,null,null,null,null,0]
["S2003/AL","S2003 1K Грунт адгезионный для пластика","600 мл",null,"Аэрозоль",null,"Прозрачный",12,9.7827254237288148,{"$f":"ROUND(I150*(1-$B$3),2)","v":9.7799999999999994},null,{"$f":"J150*K150","v":0}]
["PLAS/1","PLAST X 1 Обезжириватель-антисиликон","400 мл",null,"Аэрозоль",null,"Прозрачный",9,8.1449923728813562,{"$f":"ROUND(I151*(1-$B$3),2)","v":8.14},null,{"$f":"J151*K151","v":0}]
["PLAS/2","PLAST X 2 Грунт адгезионный","400 мл",null,"Аэрозоль",null,"Прозрачный",9,8.1449923728813562,8.14,null,0,null,null,null,null,null,null,null,null,null,null,null,null,null,null,null,null,null,0.43330000000000002,8.8199999999999997E-3,{"$f":"AD152*K152","v":0},{"$f":"AE152*(K152/H152)","v":0}]
["PLAS/3","PLAST X 3 Грунт наполнитель","400 мл",null,"Аэрозоль",null,"Серый",9,8.1449923728813562,8.14,null,0,null,null,null,null,null,null,null,null,null,null,null,null,null,null,null,null,null,0.4556,8.8199999999999997E-3,{"$f":"AD153*K153","v":0},{"$f":"AE153*(K153/H153)","v":0}]
["PLAS/4F","PLAST X 4 Текстурный слой","400 мл",null,"Аэрозоль",null,"Черный, мелкий",9,8.1449923728813562,8.14,null,0,null,null,null,null,null,null,null,null,null,null,null,null,null,null,null,null,null,0.4556,8.8199999999999997E-3,{"$f":"AD154*K154","v":0},{"$f":"AE154*(K154/H154)","v":0}]
["PLAS/4C","PLAST X 4 Текстурный слой","400 мл",null,"Аэрозоль",null,"Черный, грубый",9,8.1449923728813562,8.14,null,0,null,null,null,null,null,null,null,null,null,null,null,null,null,null,null,null,null,0.38329999999999997,8.8199999999999997E-3,{"$f":"AD155*K155","v":0},{"$f":"AE155*(K155/H155)","v":0}]
["Серия аэрозолей POWER CAN",null,null,null,null,null,null,null,0]
["PCAS/AL","POWER CAN Эмаль для колесных дисков","500 мл",null,"Аэрозоль",null,"Серебристый",12,5.43727372881356,5.44,null,0,null,null,null,null,null,null,null,null,null,null,null,null,null,null,null,null,null,0.47920000000000001,1.389E-2,{"$f":"AD157*K157","v":0},{"$f":"AE157*(K157/H157)","v":0}]
["PCSS/AL","POWER CAN Эмаль для колесных дисков","500 мл",null,"Аэрозоль",null,"Стальной",12,5.43727372881356,5.44,null,0,null,null,null,null,null,null,null,null,null,null,null,null,null,null,null,null,null,0.46250000000000002,1.389E-2,0,0]
["PCGB/AL","POWER CAN Эмаль глянцевая","500 мл",null,"Аэрозоль",null,"Черный глянец",12,5.43727372881356,5.44,null,0,null,null,null,null,null,null,null,null,null,null,null,null,null,null,null,null,null,0.4708,1.389E-2,0,0]
["PCSB/AL","POWER CAN Эмаль полуматовая ","500 мл",null,"Аэрозоль",null,"Черный полумат",12,5.43727372881356,5.44,null,0,null,null,null,null,null,null,null,null,null,null,null,null,null,null,null,null,null,0.4708,1.389E-2,0,0]
["PCMB/AL","POWER CAN Эмаль матовая","500 мл",null,"Аэрозоль",null,"Черный мат",12,5.43727372881356,5.44,null,0,null,null,null,null,null,null,null,null,null,null,null,null,null,null,null,null,null,0.47499999999999998,1.389E-2,0,0]
["PCGW/AL","POWER CAN Эмаль глянцевая","500 мл",null,"Аэрозоль",null,"Белый глянец",12,5.43727372881356,5.44,null,0,null,null,null,null,null,null,null,null,null,null,null,null,null,null,null,null,null,0.47920000000000001,1.389E-2,0,0]
["PCLC/AL","POWER CAN 1K Лак c высоким глянцем","500 мл",null,"Аэрозоль",null,"Прозрачный",12,5.5246194915254234,5.52,null,0,null,null,null,null,null,null,null,null,null,null,null,null,null,null,null,null,null,0.52080000000000004,1.389E-2,0,0]
["PCPG/AL","POWER CAN Грунт выравниватель","500 мл",null,"Аэрозоль",null,"Серый",12,5.43727372881356,5.44,null,0,null,null,null,null,null,null,null,null,null,null,null,null,null,null,null,null,null,0.45419999999999999,1.389E-2,0,0]
["PCEP/AL","POWER CAN Грунт протравливающий (Etch Primer)","500 мл",null,"Аэрозоль",null,"Темно-серый",12,5.43727372881356,5.44,null,0,null,null,null,null,null,null,null,null,null,null,null,null,null,null,null,null,null,0.4708,1.389E-2,0,0]
["Система наполнения аэрозолей CUSTOM CAN",null,null,null,null,null,null,null,0]
["CCFOUP/AL","CUSTOM CAN FILL-ONE Баллон аэрозольный призаряженный","400 мл",null,"Аэрозоль",null,"-",12,4.3672881355932205,{"$f":"ROUND(I167*(1-$B$3),2)","v":4.37},null,{"$f":"J167*K167","v":0},null,null,null,null,null,null,null,null,null,null,null,null,null,null,null,null,null,0.32329999999999998,1.2E-2,{"$f":"AD167*K167","v":0},{"$f":"AE167*(K167/H167)","v":0}]
["CCFOFILLP","CUSTOM CAN FILL-ONE Система наполнения аэрозолей, пневматическая","-",null,"шт.",null,"-",1,2557.9315792372881,{"$f":"ROUND(I168*(1-$B$3),2)","v":2557.9299999999998},null,{"$f":"J168*K168","v":0},null,null,null,null,null,null,null,null,null,null,null,null,null,null,null,null,null,4.5999999999999996,5.47E-3,0,0]
["CCFOFILLM","CUSTOM CAN FILL-ONE Система наполнения аэрозолей, механическая","-",null,"шт.",null,"-",1,2302.1395131355935,{"$f":"ROUND(I169*(1-$B$3),2)","v":2302.14},null,{"$f":"J169*K169","v":0},null,null,null,null,null,null,null,null,null,null,null,null,null,null,null,null,null,4.5999999999999996,5.47E-3,0,0]
["CCUP/AL","CUSTOM CAN  Баллон аэрозольный призаряженный","400 мл",null,"Аэрозоль",null,"-",12,4.1707601694915253,4.17,null,0,null,null,null,null,null,null,null,null,null,null,null,null,null,null,null,null,null,0.32329999999999998,1.2E-2,0,0]
["CCFILLP","CUSTOM CAN Система наполнения аэрозолей, пневматическая","-",null,"шт.",null,"-",1,2557.9315792372881,2557.9299999999998,null,0,null,null,null,null,null,null,null,null,null,null,null,null,null,null,null,null,null,33,6.4449999999999993E-2,0,0]
["CCCUP","CUSTOM CAN Стакан для системы наполнения аэрозолей","-",null,"шт.",null,"-",1,231.00770593220341,231.01,null,0,null,null,null,null,null,null,null,null,null,null,null,null,null,null,null,null,null,0.155,2.1000000000000001E-4,0,0]
["Сопутствующие материалы MAXIMUM ",null,null,null,null,null,null,null,null,null,{"$f":"SUM(K174:K185)","v":0},{"$f":"SUM(L174:L185)","v":0},null,null,null,null,null,null,null,null,null,null,null,null,null,null,null,null,null,null,null,{"$f":"SUM(AF174:AF185)","v":0},{"$f":"SUM(AG174:AG185)","v":0}]
["MFILM/B120","Пленка укрывочная, прозрачная, 5 х 120 м","5х120 м",null,"шт.",null,"Прозрачный",1,56.283425847457629,{"$f":"ROUND(I174*(1-$B$3),2)","v":56.28},null,{"$f":"J174*K174","v":0},null,null,null,null,null,null,null,null,null,null,null,null,null,null,null,null,null,8.1999999999999993,2.7140000000000001E-2,{"$f":"AD174*K174","v":0},{"$f":"AE174*(K174/H174)","v":0}]
["MFILM/B150","Пленка укрывочная, прозрачная, 4 х 150 м","4х150 м",null,"шт.",null,"Прозрачный",1,52.53847627118644,52.54,null,0,null,null,null,null,null,null,null,null,null,null,null,null,null,null,null,null,null,6.2,2.7140000000000001E-2,0,0]
["MFILMCUT","Резак безопасный  для укрывочной пленки","-",null,"шт.",null,"-",5,3.3191389830508475,3.32,null,0,null,null,null,null,null,null,null,null,null,null,null,null,null,null,null,null,null,0.09,1.8000000000000001E-4,0,0]
["PFSF/1000","Фильтр-воронка 125 микрон","125 мк",null,"шт.",null,"-",1000,7.6427542372881366E-2,0.08,null,0,null,null,null,null,null,null,null,null,null,null,null,null,null,null,null,null,null,5.3E-3,3.3300000000000003E-2,0,0]
["PFEF/1000","Фильтр-воронка 190 микрон","190 мк",null,"шт.",null,"-",1000,7.6427542372881366E-2,0.08,null,0,null,null,null,null,null,null,null,null,null,null,null,null,null,null,null,null,null,5.3E-3,3.3300000000000003E-2,0,0]
["TRAG/10","Салфетка липкая","-",null,"шт.",null,"-",10,0.45856525423728817,0.46,null,0,null,null,null,null,null,null,null,null,null,null,null,null,null,null,null,null,null,1.6E-2,1.09E-3,0,0]
["ON/1","ONION BOARD Палитра многослойная для смешивания материалов (100 листов)","100 л",null,"шт.",null,"Белый",10,7.9921372881355932,7.99,null,0,null,null,null,null,null,null,null,null,null,null,null,null,null,null,null,null,null,0.62,1.355E-2,0,0]
["COVER/M","Комбинезон защитный с капюшоном, размер М","М",null,"шт.",null,"Белый",10,8.0467283898305073,8.0500000000000007,null,0,null,null,null,null,null,null,null,null,null,null,null,null,null,null,null,null,null,0.32,2.2880000000000001E-2,0,0]
["COVER/L","Комбинезон защитный с капюшоном, размер L","L",null,"шт.",null,"Белый",10,8.0467283898305073,8.0500000000000007,null,0,null,null,null,null,null,null,null,null,null,null,null,null,null,null,null,null,null,0.32,2.2880000000000001E-2,0,0]
["COVER/XL","Комбинезон защитный с капюшоном, размер XL","XL",null,"шт.",null,"Белый",10,8.0467283898305073,8.0500000000000007,null,0,null,null,null,null,null,null,null,null,null,null,null,null,null,null,null,null,null,0.32,2.2880000000000001E-2,0,0]
["COVER/XXL","Комбинезон защитный с капюшоном, размер XXL","XXL",null,"шт.",null,"Белый",10,9.5097699152542372,9.51,null,0,null,null,null,null,null,null,null,null,null,null,null,null,null,null,null,null,null,0.32,2.2880000000000001E-2,0,0]
["COVER/XXXL","Комбинезон защитный с капюшоном, размер XXXL","XXXL",null,"шт.",null,"Белый",10,10.819956355932204,10.82,null,0,null,null,null,null,null,null,null,null,null,null,null,null,null,null,null,null,null,0.32,2.2880000000000001E-2,0,0]
["Окрасочные пистолеты MAXIMUM ",null,null,null,null,null,null,null,null,null,{"$f":"SUM(K187:K191)","v":0},{"$f":"SUM(L187:L191)","v":0},null,null,null,null,null,null,null,null,null,null,null,null,null,null,null,null,null,null,null,{"$f":"SUM(AF187:AF191)","v":0},{"$f":"SUM(AG187:AG191)","v":0}]
["GUNGHV/13","Пистолет окрасочный HVLP с верхней подачей 1.3 мм","1.3 мм",null,"шт.",null,"-",1,172.93369194915255,172.93,null,0,null,null,null,null,null,null,null,null,null,null,null,null,null,null,null,null,null,1.1000000000000001,4.0800000000000003E-3,{"$f":"AD187*K187","v":0},{"$f":"AE187*(K187/H187)","v":0}]
["GUNGHV/14","Пистолет окрасочный HVLP с верхней подачей 1.4 мм","1.4 мм",null,"шт.",null,"-",1,172.93369194915255,172.93,null,0,null,null,null,null,null,null,null,null,null,null,null,null,null,null,null,null,null,1.1000000000000001,4.0800000000000003E-3,{"$f":"AD188*K188","v":0},{"$f":"AE188*(K188/H188)","v":0}]
["GUNGHV/17","Пистолет окрасочный HVLP с верхней подачей 1.7 мм","1.7 мм",null,"шт.",null,"-",1,172.93369194915255,172.93,null,0,null,null,null,null,null,null,null,null,null,null,null,null,null,null,null,null,null,1.1000000000000001,4.0800000000000003E-3,{"$f":"AD189*K189","v":0},{"$f":"AE189*(K189/H189)","v":0}]
["GUNGHV/25","Пистолет окрасочный HVLP с верхней подачей 2.5 мм","2.5 мм",null,"шт.",null,"-",1,172.93369194915255,172.93,null,0,null,null,null,null,null,null,null,null,null,null,null,null,null,null,null,null,null,1.1000000000000001,4.0800000000000003E-3,{"$f":"AD190*K190","v":0},{"$f":"AE190*(K190/H190)","v":0}]
["GUNGMI/10","Пистолет окрасочный HVLP мини, с верхней подачей 1.0 мм","1.0 мм",null,"шт.",null,"-",1,158.42337711864405,158.41999999999999,null,0,null,null,null,null,null,null,null,null,null,null,null,null,null,null,null,null,null,0.6,1.67E-3,{"$f":"AD191*K191","v":0},{"$f":"AE191*(K191/H191)","v":0}]
["Вспомогательные материалы",null,null,null,null,null,null,null,null,null,{"$f":"SUM(K193:K195)","v":0},{"$f":"SUM(L193:L195)","v":0},null,null,null,null,null,null,null,null,null,null,null,null,null,null,null,null,null,null,null,{"$f":"SUM(AF193:AF195)","v":0},{"$f":"SUM(AG193:AG195)","v":0}]
["GL/SM/D","Набор ремонтный для работы со стекловолокном, маленький","-",null,"Набор",null,"-",10,8.112237711864406,8.11,null,0,null,null,null,null,null,null,null,null,null,null,null,null,null,null,null,null,null,0.5625,2.6669999999999999E-2,{"$f":"AD193*K193","v":0},{"$f":"AE193*(K193/H193)","v":0}]
["HRED/L","Отвердитель для полиэфирных шпатлевок","40 г",null,"Пакет",null,"Красный",20,1.1354949152542373,1.1399999999999999,null,0,null,null,null,null,null,null,null,null,null,null,null,null,null,null,null,null,null,4.4999999999999998E-2,2.66E-3,{"$f":"AD194*K194","v":0},{"$f":"AE194*(K194/H194)","v":0}]
["PM1","Сетка алюминиевая 25 см х 20 см ","25х20 см",null,"шт.",null,"Серебряный",50,1.932525,1.93,null,0,null,null,null,null,null,null,null,null,null,null,null,null,null,null,null,null,null,2.3E-2,3.5799999999999998E-3,{"$f":"AD195*K195","v":0},{"$f":"AE195*(K195/H195)","v":0}]
["Промо- и сувенирная продукция",null,null,null,null,null,null,null,null,null,{"$f":"SUM(K197:K199)","v":0},{"$f":"SUM(L197:L199)","v":0},null,null,null,null,null,null,null,null,null,null,null,null,null,null,null,null,null,null,null,{"$f":"SUM(AF197:AF199)","v":0},{"$f":"SUM(AG197:AG199)","v":0}]
["VEST/RPT-M","Жилет RAPTOR утепленный размер M","M",null,"шт.",null,"Черный",1,26.33,{"$f":"ROUND(I197*(1-$B$3),2)","v":26.33},null,{"$f":"J197*K197","v":0},null,null,null,null,null,null,null,null,null,null,null,null,null,null,null,null,null,0.4,0.05,{"$f":"AD197*K197","v":0},{"$f":"AE197*(K197/H197)","v":0}]
["VEST/RPT-L","Жилет RAPTOR утепленный размер L","L",null,"шт.",null,"Черный",1,26.33,26.33,null,0,null,null,null,null,null,null,null,null,null,null,null,null,null,null,null,null,null,0.4,0.05,{"$f":"AD198*K198","v":0},{"$f":"AE198*(K198/H198)","v":0}]
["VEST/RPT-XL","Жилет RAPTOR утепленный размер XL","XL",null,"шт.",null,"Черный",1,26.33,26.33,null,0,null,null,null,null,null,null,null,null,null,null,null,null,null,null,null,null,null,0.4,0.05,{"$f":"AD199*K199","v":0},{"$f":"AE199*(K199/H199)","v":0}]

{"sheet":"Инструкция","index":1,"n_rows":16,"n_cols":2,"rows_kept":16,"cut":false,"hidden":false,"merged":[]}
["Инструкция по работе с формой заявки на материалы U-POL"]
[]
[]
[1,"Форма заявка является файлом шаблона Microsoft Excel - при каждом открытии формы создается новый документ, а оригинальная версия шаблона остается не тронутой. Каждый новый заказ необходимо начинать с открытия пустой формы шаблона, а не предыдущего заказа."]
[]
[2,"При открытии формы, для правильной работы макросов, необходимо разрешить работу макросов ответив положительно на соответсвующий запрос Microsoft Excel."]
[]
[3,"Ввод данных осуществляется на закладке \"Order Form\"."]
[]
[4,"Все разделы формы заказа сгруппированы. Открыть/закрыть группу можно нажатием на знак \"+\"/\"-\" с лева от названия группы. При нажатии на \"2\" или \"1\" в верхнем левом углу окна, автоматически открываются/закрываются все группы."]
[]
[5,"Вводить необходимо только количества. Количества должны быть кратные количеству штук в упаковке."]
[]
[6,"Некоторые продукты присутсвуют в форме два раза. Например: грунты в аэрозольной упаковке находятся в разделе грунты и в разделе аэрозоли. "]
[]
[7,"Для быстрого просмотра введенных данных можно воспользоваться кнопокй \"Посмотреть заказ\". Будут отфильтрованы только те материалы, которые присутсвуют в заказе. Выход из режима просмотра осуществляется нажатием на кнопку \"Вернуться к полному списку\"."]